fUSD/lending_fUSD_20240109
["ID","MTS","AMOUNT","RATE_DAILY","PERIOD"]
[310917432,1704814407965,-4406.91,0.00042164,30]
[310917433,1704814407975,-1297.88,0.00042164,30]
[310917434,1704814408301,-6577.65,0.00042164,30]
[310917435,1704814408315,-571.22,0.00042164,30]
[310917436,1704814408325,-500.0,0.00042164,30]
[310917437,1704814408334,-3403.92,0.00042164,30]
[310917438,1704814408344,-2751.1,0.00042164,30]
[310917439,1704814408353,-3033.25,0.00042164,30]
[310917440,1704814408363,-952.63,0.00042164,30]
[310917441,1704814408373,-1721.02,0.00042164,30]
[310917442,1704814408382,-7028.61,0.00042164,30]
[310917443,1704814408391,-836.3,0.00042164,7]
[310917444,1704814408402,-5593.4,0.00042164,30]
[310917445,1704814408412,-500.0,0.00042164,30]
[310917446,1704814408422,-2579.3,0.00042164,30]
[310917447,1704814408432,-831.97,0.00042164,30]
[310917448,1704814408442,-500.0,0.00042164,30]
[310917449,1704814408452,-30439.38,0.00042164,30]
[310917450,1704814408463,-3381.6,0.00042164,30]
[310917451,1704814408473,-3472.05,0.00042164,30]
[310917452,1704814408482,-2158.92,0.00042164,30]
[310917453,1704814408492,-3977.49,0.00042164,30]
[310917454,1704814408502,-3410.32,0.00042164,30]
[310917455,1704814408511,-10635.21,0.00042164,30]
[310917456,1704814408520,-3128.49,0.00042164,30]
[310917457,1704814408530,-663.76,0.00042164,30]
[310917458,1704814408540,-24039.48,0.00042164,30]
[310917459,1704814408549,-207.8612308,0.00042164,30]
[310917460,1704814408558,-3985.89,0.00042164,30]
[310917461,1704814408568,-2042.98,0.00042164,30]
[310917462,1704814408577,-963.6,0.00042164,30]
[310917463,1704814408586,-666.14,0.00042164,30]
[310917464,1704814408596,-556.97,0.00042164,30]
[310917465,1704814408606,-8775.01,0.00042164,30]
[310917466,1704814408616,-2400.49,0.00042164,30]
[310917467,1704814408625,-1309.81,0.00042164,30]
[310917468,1704814408635,-4562.41,0.00042164,30]
[310917469,1704814408645,-2978.02,0.00042164,30]
[310917470,1704814408655,-12849.89,0.00042164,30]
[310917471,1704814408665,-4825.39,0.00042164,30]
[310917472,1704814408674,-566.11,0.00042164,30]
[310917473,1704814408683,-2107.23,0.00042164,30]
[310917474,1704814408693,-1467.66,0.00042164,30]
[310917475,1704814408702,-500.0,0.00042164,30]
[310917476,1704814408711,-11369.64,0.00042164,30]
[310917477,1704814408721,-1188.47,0.00042164,30]
[310917478,1704814408730,-2592.28,0.00042164,30]
[310917479,1704814408740,-566.95,0.00042164,30]
[310917480,1704814408749,-520.31,0.00042164,30]
[310917481,1704814408758,-13217.82,0.00042164,30]
[310917482,1704814408767,-866.47,0.00042164,30]
[310917483,1704814408776,-3181.95,0.00042164,30]
[310917484,1704814408786,-1308.82,0.00042164,30]
[310917485,1704814408795,-500.0,0.00042164,30]
[310917486,1704814408805,-1243.26,0.00042164,30]
[310917487,1704814408815,-3734.08,0.00042164,30]
[310917488,1704814408825,-642.45682302,0.00042164,30]
[310917489,1704814408837,-1766.64,0.00042164,30]
[310917490,1704814408846,-3615.8,0.00042164,30]
[310917491,1704814408856,-799.0,0.00042164,30]
[310917492,1704814408865,-53505.47,0.00042164,30]
[310917493,1704814408874,-500.0,0.00042164,30]
[310917494,1704814408883,-1413.08,0.00042164,30]
[310917495,1704814408893,-11287.22,0.00042164,30]
[310917496,1704814408903,-3747.83,0.00042164,30]
[310917497,1704814408912,-1155.76,0.00042164,30]
[310917498,1704814408922,-1079.77,0.00042164,30]
[310917499,1704814408932,-1909.74,0.00042164,30]
[310917500,1704814408942,-500.0,0.00042164,30]
[310917501,1704814408952,-3376.04,0.00042164,30]
[310917502,1704814408963,-1333.09,0.00042164,30]
[310917503,1704814408973,-9749.45,0.00042164,30]
[310917504,1704814408983,-539.77,0.00042164,30]
[310917505,1704814408993,-2218.8,0.00042164,30]
[310917506,1704814409002,-1480.74,0.00042164,30]
[310917507,1704814409012,-7804.99,0.00042164,30]
[310917508,1704814409022,-1670.61,0.00042164,30]
[310917509,1704814409031,-4741.82,0.00042164,30]
[310917510,1704814409041,-1839.15,0.00042164,30]
[310917511,1704814409051,-866.78,0.00042164,30]
[310917512,1704814409061,-1070.69,0.00042164,30]
[310917513,1704814409070,-1274.54,0.00042164,30]
[310917514,1704814409080,-744.76,0.00042164,30]
[310917515,1704814409090,-1352.73,0.00042164,30]
[310917516,1704814409100,-2037.9,0.00042164,30]
[310917517,1704814409109,-6743.41,0.00042164,30]
[310917518,1704814409118,-1978.49,0.00042164,30]
[310917519,1704814409128,-6850.2,0.00042164,30]
[310917520,1704814409137,-621.39,0.00042164,30]
[310917521,1704814409148,-3055.23,0.00042164,30]
[310917522,1704814409158,-2655.54,0.00042164,30]
[310917523,1704814409167,-764.5,0.00042164,30]
[310917524,1704814409176,-8868.04,0.00042164,30]
[310917525,1704814409186,-770.69,0.00042164,30]
[310917526,1704814409195,-4116.15,0.00042164,30]
[310917527,1704814409205,-6036.32,0.00042164,30]
[310917528,1704814409215,-3806.3,0.00042164,30]
[310917529,1704814409224,-1289.28,0.00042164,30]
[310917530,1704814409233,-5775.13,0.00042164,30]
[310917531,1704814409243,-500.0,0.00042164,30]
[310917532,1704814409252,-6309.52,0.00042164,30]
[310917533,1704814409263,-845.03,0.00042164,30]
[310917534,1704814409272,-1090.32,0.00042164,30]
[310917535,1704814409282,-3727.78,0.00042164,30]
[310917536,1704814409291,-5575.14,0.00042164,30]
[310917537,1704814409300,-901.26,0.00042164,30]
[310917538,1704814409309,-10643.6,0.00042164,30]
[310917539,1704814409319,-529.51,0.00042164,30]
[310917540,1704814409328,-4214.2,0.00042164,30]
[310917541,1704814409338,-500.0,0.00042164,30]
[310917542,1704814409353,-3567.97,0.00042164,30]
[310917543,1704814409363,-500.0,0.00042164,30]
[310917544,1704814409372,-2289.51,0.00042164,30]
[310917545,1704814409382,-4092.41,0.00042164,30]
[310917546,1704814409391,-4952.19,0.00042164,30]
[310917547,1704814409402,-546.11,0.00042164,30]
[310917548,1704814409413,-1000.5,0.00042164,30]
[310917549,1704814409422,-2584.46,0.00042164,30]
[310917550,1704814409433,-25536.63,0.00042164,30]
[310917551,1704814409442,-6469.48,0.00042164,30]
[310917552,1704814409452,-338.8084413,0.00042164,30]
[310917553,1704814409461,-1883.51,0.00042164,30]
[310917554,1704814409471,-14086.33,0.00042164,30]
[310917555,1704814409481,-17610.03,0.00042164,30]
[310917556,1704814409491,-2218.2,0.00042164,30]
[310917557,1704814409500,-1520.43,0.00042164,30]
[310917558,1704814409510,-2301.6,0.00042164,30]
[310917559,1704814409522,-3584.84,0.00042164,30]
[310917560,1704814409532,-82269.16,0.00042164,30]
[310917561,1704814409543,-12370.47,0.00042164,30]
[310917562,1704814409553,-587.12,0.00042164,30]
[310917563,1704814409563,-2651.08,0.00042164,30]
[310917564,1704814409573,-811.16,0.00042164,30]
[310917565,1704814409582,-8660.7,0.00042164,30]
[310917566,1704814409591,-7898.64,0.00042164,30]
[310917567,1704814409601,-500.0,0.00042164,30]
[310917568,1704814409611,-1178.68,0.00042164,30]
[310917569,1704814409620,-6405.08,0.00042164,30]
[310917570,1704814409631,-6245.69,0.00042164,30]
[310917571,1704814409640,-3770.14,0.00042164,30]
[310917572,1704814409651,-500.0,0.00042164,30]
[310917573,1704814409660,-1033.39,0.00042164,30]
[310917574,1704814409669,-2108.08,0.00042164,30]
[310917575,1704814409679,-1235.98,0.00042164,30]
[310917576,1704814409688,-3248.4,0.00042164,30]
[310917577,1704814409698,-4003.81,0.00042164,30]
[310917578,1704814409708,-500.0,0.00042164,30]
[310917579,1704814409717,-1028.56,0.00042164,30]
[310917580,1704814409728,-923.06,0.00042164,30]
[310917581,1704814409738,-818.97,0.00042164,30]
[310917582,1704814409748,-3938.01,0.00042164,30]
[310917583,1704814409758,-500.0,0.00042164,30]
[310917584,1704814409769,-936.13,0.00042164,30]
[310917585,1704814409779,-5593.35,0.00042164,30]
[310917586,1704814409789,-500.0,0.00042164,30]
[310917587,1704814409800,-500.0,0.00042191,30]
[310917588,1704814409809,-3257.97,0.00042191,120]
[310917589,1704814409819,-152.64,0.000422,7]
[310917590,1704814409828,-832.5,0.00042205,2]
[310917591,1704814409842,-22253.68228164,0.00042222,30]
[310917592,1704814409852,-1349.16,0.00042246,30]
[310917593,1704814409862,-500.0,0.00042246,30]
[310917594,1704814409871,-1655.21,0.00042246,30]
[310917595,1704814409881,-717.53,0.00042246,30]
[310917596,1704814409892,-684.27,0.00042246,30]
[310917597,1704814409902,-500.0,0.00042246,30]
[310917598,1704814409913,-878.82,0.00042246,30]
[310917599,1704814409922,-500.0,0.00042246,30]
[310917600,1704814409933,-1062.3,0.00042246,30]
[310917601,1704814409942,-505.38,0.00042246,30]
[310917602,1704814409951,-194.32,0.00042246,30]
[310917603,1704814409960,-701.66,0.00042246,30]
[310917604,1704814409970,-1067.49,0.00042246,30]
[310917605,1704814409979,-500.0,0.00042246,30]
[310917606,1704814409988,-565.87,0.00042246,30]
[310917607,1704814409997,-500.0,0.00042246,30]
[310917608,1704814410007,-500.0,0.00042246,30]
[310917609,1704814410016,-707.34,0.00042246,30]
[310917610,1704814410025,-676.09,0.00042246,30]
[310917611,1704814410034,-581.02,0.00042246,30]
[310917612,1704814410043,-1072.03,0.00042246,30]
[310917613,1704814410052,-712.95,0.00042246,30]
[310917614,1704814410062,-2060.33,0.00042246,30]
[310917615,1704814410071,-569.49,0.00042246,30]
[310917616,1704814410080,-500.0,0.00042246,30]
[310917617,1704814410089,-500.0,0.00042246,30]
[310917618,1704814410098,-611.31,0.00042246,30]
[310917619,1704814410107,-501.20039071,0.00042246,30]
[310917620,1704814410117,-500.0,0.00042246,30]
[310917621,1704814410126,-500.0,0.00042246,30]
[310917622,1704814410137,-500.0,0.00042246,30]
[310917623,1704814410147,-500.0,0.00042246,30]
[310917624,1704814410157,-569.87,0.00042246,2]
[310917625,1704814410166,-808.52,0.00042246,30]
[310917626,1704814410176,-1090.72,0.00042246,30]
[310917627,1704814410186,-500.0,0.00042246,30]
[310917628,1704814410196,-500.0,0.00042246,30]
[310917629,1704814410206,-1089.41,0.00042246,30]
[310917630,1704814410215,-675.87,0.00042246,30]
[310917631,1704814410225,-978.4,0.00042246,30]
[310917632,1704814410236,-500.0,0.00042246,30]
[310917633,1704814410247,-500.0,0.00042246,30]
[310917634,1704814410257,-943.45,0.00042246,30]
[310917635,1704814410267,-1046.91,0.00042246,30]
[310917636,1704814410277,-338.03482492,0.00042246,30]
[310917637,1704814410287,-500.0,0.00042246,30]
[310917638,1704814410297,-989.32,0.00042246,30]
[310917639,1704814410307,-523.36,0.00042246,30]
[310917640,1704814410317,-735.81,0.00042246,30]
[310917641,1704814410326,-500.0,0.00042246,30]
[310917642,1704814410335,-805.93,0.00042246,30]
[310917643,1704814410345,-500.0,0.00042246,7]
[310917644,1704814410354,-1029.87,0.00042246,30]
[310917645,1704814410364,-500.0,0.00042246,30]
[310917646,1704814410373,-858.42,0.00042246,30]
[310917647,1704814410383,-985.14,0.00042246,30]
[310917648,1704814410392,-250.0,0.00042246,30]
[310917649,1704814410403,-887.41,0.00042246,30]
[310917650,1704814410412,-586.06,0.00042246,30]
[310917651,1704814410421,-500.0,0.00042246,30]
[310917652,1704814410430,-542.26,0.00042246,30]
[310917653,1704814410440,-924.59,0.00042246,30]
[310917654,1704814410449,-1031.16,0.00042246,30]
[310917655,1704814410458,-639.05,0.00042246,30]
[310917656,1704814410468,-651.17,0.00042246,6]
[310917657,1704814410477,-630.96,0.00042246,30]
[310917658,1704814410486,-808.61,0.00042246,30]
[310917659,1704814410496,-772.64,0.00042246,30]
[310917660,1704814410505,-768.03,0.00042246,30]
[310917661,1704814410515,-1151.39,0.00042246,30]
[310917662,1704814410524,-500.0,0.00042246,30]
[310917663,1704814410534,-500.0,0.00042246,30]
[310917664,1704814410543,-500.0,0.00042246,30]
[310917665,1704814410552,-594.48,0.00042246,30]
[310917666,1704814410561,-1345.27,0.00042246,30]
[310917667,1704814410571,-504.9,0.00042246,30]
[310917668,1704814410580,-530.22,0.00042246,30]
[310917669,1704814410590,-500.0,0.00042246,30]
[310917670,1704814410599,-898.15,0.00042246,30]
[310917671,1704814410609,-827.59,0.00042246,30]
[310917672,1704814410619,-1088.78,0.00042246,30]
[310917673,1704814410689,-1220.08,0.00042246,30]
[310917674,1704814410699,-965.85,0.00042246,30]
[310917675,1704814410708,-1200.92,0.00042246,30]
[310917676,1704814410717,-500.0,0.00042246,30]
[310917677,1704814410726,-677.14,0.00042246,30]
[310917678,1704814410735,-365.58547336,0.00042246,30]
[310917679,1704814410744,-615.95,0.00042246,30]
[310917680,1704814410753,-545.47164191,0.00042246,30]
[310917681,1704814410762,-906.91,0.00042246,30]
[310917682,1704814410771,-500.0,0.00042246,30]
[310917683,1704814410780,-1003.46,0.00042246,30]
[310917684,1704814410789,-500.0,0.00042246,30]
[310917685,1704814410798,-805.99,0.00042246,30]
[310917686,1704814410807,-500.0,0.00042246,30]
[310917687,1704814410817,-500.0,0.00042246,30]
[310917688,1704814410826,-920.79,0.00042246,30]
[310917689,1704814410835,-983.43,0.00042246,30]
[310917690,1704814410845,-628.8,0.00042246,30]
[310917691,1704814410858,-500.0,0.00042246,30]
[310917692,1704814410867,-500.0,0.00042246,30]
[310917693,1704814410876,-544.66,0.00042246,30]
[310917694,1704814410885,-1232.09,0.00042246,30]
[310917695,1704814410895,-832.26,0.00042246,30]
[310917696,1704814410904,-267.9447579,0.00042246,7]
[310917697,1704814410913,-941.95,0.00042246,30]
[310917698,1704814410921,-500.0,0.00042246,30]
[310917699,1704814410931,-809.62,0.00042246,30]
[310917700,1704814410940,-1379.83,0.00042246,30]
[310917701,1704814410949,-500.0,0.00042246,30]
[310917702,1704814410958,-844.05,0.00042246,30]
[310917703,1704814410967,-851.49,0.00042246,30]
[310917704,1704814410976,-562.95,0.00042246,30]
[310917705,1704814410985,-1162.12,0.00042246,30]
[310917706,1704814410994,-872.21,0.00042246,30]
[310917707,1704814411003,-500.0,0.00042246,30]
[310917708,1704814411012,-706.17,0.00042246,30]
[310917709,1704814411021,-980.88,0.00042246,30]
[310917710,1704814411030,-730.77,0.00042246,30]
[310917711,1704814411040,-644.62442629,0.00042246,30]
[310917712,1704814411049,-500.0,0.00042246,30]
[310917713,1704814411058,-635.39,0.00042246,30]
[310917714,1704814411066,-921.8,0.00042246,30]
[310917715,1704814411075,-500.0,0.00042246,30]
[310917716,1704814411084,-1001.03,0.00042246,30]
[310917717,1704814411093,-2820.32,0.00042246,30]
[310917718,1704814411107,-878.02,0.00042246,30]
[310917719,1704814411123,-2535.74,0.00042246,30]
[310917720,1704814411140,-613.33,0.00042246,30]
[310917721,1704814411157,-500.0,0.00042246,30]
[310917722,1704814411174,-1197.1,0.00042246,30]
[310917723,1704814411191,-500.0,0.00042246,30]
[310917724,1704814411211,-703.38,0.00042246,30]
[310917725,1704814411234,-500.0,0.00042246,30]
[310917726,1704814411250,-1209.27,0.00042246,30]
[310917727,1704814411260,-3470.75,0.00042246,30]
[310917728,1704814411269,-736.81,0.00042246,30]
[310917729,1704814411278,-500.0,0.00042246,30]
[310917730,1704814411287,-832.75,0.00042246,30]
[310917731,1704814411296,-1686.91,0.00042246,30]
[310917732,1704814411305,-2537.38,0.00042246,30]
[310917733,1704814411313,-2682.01,0.00042246,30]
[310917734,1704814411323,-1565.58,0.00042246,30]
[310917735,1704814411332,-740.27,0.00042246,30]
[310917736,1704814411342,-501.25,0.00042246,30]
[310917737,1704814411351,-600.36,0.00042246,30]
[310917738,1704814411360,-500.0,0.00042246,30]
[310917739,1704814411370,-2236.0,0.00042246,30]
[310917740,1704814411379,-2897.3,0.00042246,30]
[310917741,1704814411389,-1224.61,0.00042246,30]
[310917742,1704814411399,-1928.1,0.00042246,30]
[310917743,1704814411408,-1993.87,0.00042246,30]
[310917744,1704814411418,-576.08,0.00042246,30]
[310917745,1704814411427,-500.0,0.00042246,30]
[310917746,1704814411437,-556.49,0.00042246,30]
[310917747,1704814411446,-624.68,0.00042246,30]
[310917748,1704814411456,-2377.69,0.00042246,30]
[310917749,1704814411465,-770.16,0.00042246,30]
[310917750,1704814411474,-1122.24,0.00042246,30]
[310917751,1704814411483,-500.0,0.00042246,30]
[310917752,1704814411493,-2275.75,0.00042246,30]
[310917753,1704814411502,-2702.81,0.00042246,30]
[310917754,1704814411511,-500.0,0.00042246,30]
[310917755,1704814411520,-1074.62,0.00042246,30]
[310917756,1704814411529,-2309.85,0.00042246,30]
[310917757,1704814411538,-787.86,0.00042246,30]
[310917758,1704814411548,-3474.73,0.00042246,30]
[310917759,1704814411557,-2283.1,0.00042246,30]
[310917760,1704814411566,-509.55840015,0.00042246,30]
[310917761,1704814411576,-1596.69,0.00042246,30]
[310917762,1704814411585,-1645.78,0.00042246,30]
[310917763,1704814411594,-1113.3,0.00042246,30]
[310917764,1704814411605,-1309.33,0.00042246,30]
[310917765,1704814411615,-1314.94,0.00042246,30]
[310917766,1704814411624,-1968.01,0.00042246,30]
[310917767,1704814411634,-1096.11,0.00042246,30]
[310917768,1704814411643,-1246.22,0.00042246,30]
[310917769,1704814411655,-544.47,0.00042246,30]
[310917770,1704814411664,-1433.82,0.00042246,30]
[310917771,1704814411673,-500.0,0.00042246,30]
[310917772,1704814411682,-721.49,0.00042246,30]
[310917773,1704814411692,-2589.92,0.00042246,30]
[310917774,1704814411702,-500.0,0.00042246,30]
[310917775,1704814411712,-1499.73,0.00042246,30]
[310917776,1704814411721,-500.0,0.00042246,30]
[310917777,1704814411730,-1138.55,0.00042246,30]
[310917778,1704814411739,-2193.46,0.00042246,30]
[310917779,1704814411749,-1703.93,0.00042246,30]
[310917780,1704814411758,-1188.38,0.00042246,30]
[310917781,1704814411767,-500.0,0.00042246,30]
[310917782,1704814411776,-1590.0,0.00042246,30]
[310917783,1704814411785,-213.78196642,0.00042246,30]
[310917784,1704814411794,-987.73,0.00042246,30]
[310917785,1704814411803,-520.23,0.00042246,30]
[310917786,1704814411812,-1982.92,0.00042246,30]
[310917787,1704814411821,-523.39,0.00042246,30]
[310917788,1704814411830,-562.23,0.00042246,30]
[310917789,1704814411840,-641.09,0.00042246,30]
[310917790,1704814411852,-931.93,0.00042246,30]
[310917791,1704814411861,-552.3,0.00042246,30]
[310917792,1704814411870,-1038.62,0.00042246,30]
[310917793,1704814411879,-1121.37,0.00042246,30]
[310917794,1704814411888,-3941.88,0.00042246,30]
[310917795,1704814411898,-1704.41,0.00042246,30]
[310917796,1704814411907,-1031.35,0.00042246,30]
[310917797,1704814411916,-600.61,0.00042246,30]
[310917798,1704814411925,-672.4,0.00042246,30]
[310917799,1704814411935,-1793.95,0.00042246,30]
[310917800,1704814411945,-830.11,0.00042246,30]
[310917801,1704814411955,-626.73,0.00042246,30]
[310917802,1704814411965,-1939.09,0.00042246,30]
[310917803,1704814411976,-500.0,0.00042246,30]
[310917804,1704814411987,-1992.23,0.00042246,30]
[310917805,1704814411997,-1672.06,0.00042246,30]
[310917806,1704814412007,-1049.82,0.00042246,30]
[310917807,1704814412016,-832.6,0.00042246,30]
[310917808,1704814412026,-592.07,0.00042246,30]
[310917809,1704814412037,-1154.73,0.00042246,30]
[310917810,1704814412047,-617.46,0.00042246,30]
[310917811,1704814412056,-500.0,0.00042246,30]
[310917812,1704814412066,-2019.49,0.00042246,30]
[310917813,1704814412077,-500.0,0.00042246,30]
[310917814,1704814412086,-623.61,0.00042246,30]
[310917815,1704814412097,-1575.33,0.00042246,30]
[310917816,1704814412106,-500.0,0.00042246,30]
[310917817,1704814412116,-1208.87,0.00042246,30]
[310917818,1704814412126,-589.72,0.00042246,30]
[310917819,1704814412136,-1100.7,0.00042246,30]
[310917820,1704814412144,-574.55,0.00042246,30]
[310917821,1704814412155,-1443.2,0.00042246,30]
[310917822,1704814412165,-1118.67,0.00042246,30]
[310917823,1704814412175,-1567.43,0.00042246,30]
[310917824,1704814412185,-500.0,0.00042246,30]
[310917825,1704814412195,-538.72,0.00042246,30]
[310917826,1704814412204,-500.0,0.00042246,30]
[310917827,1704814412215,-615.94,0.00042246,30]
[310917828,1704814412225,-500.0,0.00042246,30]
[310917829,1704814412236,-1835.01,0.00042246,30]
[310917830,1704814412245,-500.0,0.00042246,30]
[310917831,1704814412254,-835.4,0.00042246,30]
[310917832,1704814412264,-500.0,0.00042246,30]
[310917833,1704814412273,-2298.01,0.00042246,30]
[310917834,1704814412283,-500.0,0.00042246,30]
[310917835,1704814412292,-870.0,0.00042246,30]
[310917836,1704814412302,-539.47,0.00042246,30]
[310917837,1704814412311,-1310.11,0.00042246,30]
[310917838,1704814412320,-1150.5,0.00042246,30]
[310917839,1704814412329,-500.0,0.00042246,30]
[310917840,1704814412339,-1360.64,0.00042246,30]
[310917841,1704814412349,-1204.31,0.00042246,30]
[310917842,1704814412358,-771.54,0.00042246,30]
[310917843,1704814412367,-923.19,0.00042246,30]
[310917844,1704814412377,-2584.55,0.00042246,30]
[310917845,1704814412386,-1160.23,0.00042246,30]
[310917846,1704814412395,-1400.49,0.00042246,30]
[310917847,1704814412405,-1315.98,0.00042246,30]
[310917848,1704814412414,-282.37187036,0.00042246,10]
[310917849,1704814412424,-1972.08,0.00042246,30]
[310917850,1704814412434,-1668.26,0.00042246,30]
[310917851,1704814412444,-1429.35,0.00042246,30]
[310917852,1704814412454,-1439.0,0.00042246,30]
[310917853,1704814412464,-946.78,0.00042246,30]
[310917854,1704814412474,-2461.03,0.00042246,30]
[310917855,1704814412484,-713.51,0.00042246,30]
[310917856,1704814412494,-1659.56,0.00042246,30]
[310917857,1704814412504,-500.0,0.00042246,30]
[310917858,1704814412513,-500.0,0.00042246,30]
[310917859,1704814412522,-500.0,0.00042246,30]
[310917860,1704814412531,-803.78,0.00042246,30]
[310917861,1704814412540,-614.42,0.00042246,30]
[310917862,1704814412549,-500.0,0.00042246,30]
[310917863,1704814412558,-800.95,0.00042246,30]
[310917864,1704814412567,-1758.64,0.00042246,30]
[310917865,1704814412578,-380.66,0.00042246,30]
[310917866,1704814412588,-1778.42,0.00042246,30]
[310917867,1704814412597,-3407.77,0.00042246,30]
[310917868,1704814412609,-2138.28,0.00042246,30]
[310917869,1704814412618,-363.78924524,0.00042246,30]
[310917870,1704814412628,-848.11,0.00042246,30]
[310917871,1704814412637,-886.41,0.00042246,30]
[310917872,1704814412647,-1677.31,0.00042246,30]
[310917873,1704814412658,-500.0,0.00042246,30]
[310917874,1704814412668,-500.0,0.00042246,30]
[310917875,1704814412679,-3178.9,0.00042246,30]
[310917876,1704814412688,-1138.73,0.00042246,30]
[310917877,1704814412698,-2732.04,0.00042246,30]
[310917878,1704814412708,-500.0,0.00042246,30]
[310917879,1704814412718,-770.65,0.00042246,30]
[310917880,1704814412728,-500.0,0.00042246,30]
[310917881,1704814412738,-2194.76,0.00042246,30]
[310917882,1704814412749,-500.0,0.00042246,30]
[310917883,1704814412760,-1048.75,0.00042246,30]
[310917884,1704814412769,-1329.34,0.00042246,30]
[310917885,1704814412778,-2754.0,0.00042246,30]
[310917886,1704814412787,-1008.53,0.00042246,30]
[310917887,1704814412796,-1507.83,0.00042246,30]
[310917888,1704814412806,-680.5,0.00042246,30]
[310917889,1704814412815,-500.0,0.00042246,30]
[310917890,1704814412824,-634.38,0.00042246,30]
[310917891,1704814412834,-2700.24,0.00042246,30]
[310917892,1704814412844,-500.0,0.00042246,30]
[310917893,1704814412856,-1356.37,0.00042246,30]
[310917894,1704814412865,-500.0,0.00042246,30]
[310917895,1704814412875,-651.64,0.00042246,30]
[310917896,1704814412884,-500.0,0.00042246,30]
[310917897,1704814412894,-500.0,0.00042246,30]
[310917898,1704814412904,-952.35,0.00042246,30]
[310917899,1704814412913,-1810.23,0.00042246,30]
[310917900,1704814412922,-587.58,0.00042246,30]
[310917901,1704814412931,-625.64,0.00042246,30]
[310917902,1704814412942,-676.46,0.00042246,30]
[310917903,1704814412952,-506.66378338,0.00042246,30]
[310917904,1704814412961,-311.72915442,0.00042246,30]
[310917905,1704814412971,-1006.7,0.00042246,30]
[310917906,1704814412980,-1236.35,0.00042246,30]
[310917907,1704814412989,-1919.15,0.00042246,30]
[310917908,1704814412999,-1037.96,0.00042246,30]
[310917909,1704814413008,-500.0,0.00042246,30]
[310917910,1704814413018,-1578.69,0.00042246,30]
[310917911,1704814413028,-1865.73,0.00042246,30]
[310917912,1704814413038,-500.0,0.00042246,30]
[310917913,1704814413047,-1362.93,0.00042246,30]
[310917914,1704814413057,-1537.84,0.00042246,30]
[310917915,1704814413067,-2456.66,0.00042246,30]
[310917916,1704814413077,-500.0,0.00042246,30]
[310917917,1704814413086,-589.31,0.00042246,30]
[310917918,1704814413096,-1710.93,0.00042246,30]
[310917919,1704814413106,-788.83,0.00042246,30]
[310917920,1704814413115,-500.0,0.00042246,30]
[310917921,1704814413124,-2756.46,0.00042246,30]
[310917922,1704814413134,-2588.77,0.00042246,30]
[310917923,1704814413143,-946.47,0.00042246,30]
[310917924,1704814413154,-2705.23,0.00042246,30]
[310917925,1704814413163,-500.0,0.00042246,30]
[310917926,1704814413172,-825.0,0.00042246,30]
[310917927,1704814413182,-1714.7,0.00042246,30]
[310917928,1704814413191,-821.89,0.00042246,30]
[310917929,1704814413201,-987.47,0.00042246,30]
[310917930,1704814413210,-12516.53,0.00042246,30]
[310917931,1704814413220,-2523.55,0.00042246,30]